[Event "Early Titled Tuesday Blitz | February 8 2022"]
[White "Maevsky, Nikolay"]
[Black "Rakhmanov, Aleksandr"]
[WhiteFideId "4198220"]
[BlackFideId "4173708"]
[WhiteElo "2104"]
[BlackElo "2500"]
[Result "0-1"]
[Round "11"]
[TimeControl "180+1"]
[Date "2022.02.08"]
[WhiteClock "0:00:02"]
[BlackClock "0:00:09"]

1. d4 {[%clk 0:03:00]}  Nf6 {[%clk 0:02:59]} 2. Nf3 {[%clk 0:03:01]}  g6 {[%clk 0:02:54]} 3. c4 {[%clk 0:03:00]}  d6 {[%clk 0:02:53]} 4. Nc3 {[%clk 0:03:01]}  Bf5 {[%clk 0:02:52]} 5. Nh4 {[%clk 0:03:00]}  Bd7 {[%clk 0:02:52]} 6. Nf3 {[%clk 0:02:58]}  Bf5 {[%clk 0:02:52]} 7. Nh4 {[%clk 0:02:58]}  Bd7 {[%clk 0:02:53]} 8. Nf3 {[%clk 0:02:58]}  Bg7 {[%clk 0:02:49]} 9. e4 {[%clk 0:02:58]}  e5 {[%clk 0:02:49]} 10. d5 {[%clk 0:02:53]}  Na6 {[%clk 0:02:44]} 11. Bg5 {[%clk 0:02:50]}  Nc5 {[%clk 0:02:43]} 12. Nd2 {[%clk 0:02:49]}  h6 {[%clk 0:02:41]} 13. Bh4 {[%clk 0:02:44]}  a5 {[%clk 0:02:35]} 14. Be2 {[%clk 0:02:43]}  a4 {[%clk 0:02:35]} 15. O-O {[%clk 0:02:37]}  O-O {[%clk 0:02:34]} 16. Qc2 {[%clk 0:02:33]}  Qe8 {[%clk 0:02:27]} 17. f3 {[%clk 0:02:32]}  Nh5 {[%clk 0:02:27]} 18. Rfe1 {[%clk 0:02:30]}  Nf4 {[%clk 0:02:26]} 19. Bf1 {[%clk 0:02:30]}  f5 {[%clk 0:02:25]} 20. Bf2 {[%clk 0:02:27]}  Qe7 {[%clk 0:02:15]} 21. g3 {[%clk 0:01:54]}  Nh5 {[%clk 0:02:02]} 22. exf5 {[%clk 0:01:34]}  gxf5 {[%clk 0:01:49]} 23. f4 {[%clk 0:01:34]}  e4 {[%clk 0:01:44]} 24. Be2 {[%clk 0:01:21]}  Be8 {[%clk 0:01:14]} 25. Nf1 {[%clk 0:01:20]}  Bg6 {[%clk 0:01:05]} 26. Rad1 {[%clk 0:01:14]}  Kh7 {[%clk 0:01:01]} 27. Ne3 {[%clk 0:01:10]}  Qf7 {[%clk 0:00:56]} 28. Ng2 {[%clk 0:01:07]}  Bf6 {[%clk 0:00:51]} 29. Qd2 {[%clk 0:01:04]}  Qg7 {[%clk 0:00:46]} 30. Be3 {[%clk 0:00:58]}  a3 {[%clk 0:00:40]} 31. Bd4 {[%clk 0:00:44]}  Bxd4+ {[%clk 0:00:36]} 32. Qxd4 {[%clk 0:00:44]}  axb2 {[%clk 0:00:21]} 33. Qxg7+ {[%clk 0:00:43]}  Nxg7 {[%clk 0:00:20]} 34. Rb1 {[%clk 0:00:43]}  Ra3 {[%clk 0:00:20]} 35. Nb5 {[%clk 0:00:38]}  Rxa2 {[%clk 0:00:20]} 36. Nxc7 {[%clk 0:00:39]}  Na4 {[%clk 0:00:20]} 37. Nb5 {[%clk 0:00:38]}  Be8 {[%clk 0:00:14]} 38. Nxd6 {[%clk 0:00:15]}  Nc3 {[%clk 0:00:14]} 39. Kf2 {[%clk 0:00:13]}  Ba4 {[%clk 0:00:10]} 40. Ne3 {[%clk 0:00:13]}  b6 {[%clk 0:00:09]} 41. Nb5 {[%clk 0:00:12]}  Bxb5 {[%clk 0:00:09]} 42. cxb5 {[%clk 0:00:13]}  Nxb1 {[%clk 0:00:08]} 43. Rxb1 {[%clk 0:00:13]}  Rfa8 {[%clk 0:00:08]} 44. Bc4 {[%clk 0:00:11]}  R2a3 {[%clk 0:00:08]} 45. Rxb2 {[%clk 0:00:11]}  Rc3 {[%clk 0:00:08]} 46. Be2 {[%clk 0:00:10]}  Rf8 {[%clk 0:00:07]} 47. Rd2 {[%clk 0:00:09]}  Rcc8 {[%clk 0:00:06]} 48. d6 {[%clk 0:00:09]}  Rcd8 {[%clk 0:00:07]} 49. Rd5 {[%clk 0:00:09]}  Rf6 {[%clk 0:00:07]} 50. d7 {[%clk 0:00:09]}  Rf7 {[%clk 0:00:07]} 51. Rd6 {[%clk 0:00:07]}  Rdxd7 {[%clk 0:00:07]} 52. Rxb6 {[%clk 0:00:07]}  Rd2 {[%clk 0:00:08]} 53. Rc6 {[%clk 0:00:06]}  Ra7 {[%clk 0:00:08]} 54. Rc2 {[%clk 0:00:06]}  Rxc2 {[%clk 0:00:08]} 55. Nxc2 {[%clk 0:00:06]}  Ra2 {[%clk 0:00:09]} 56. Ne3 {[%clk 0:00:06]}  Rb2 {[%clk 0:00:10]} 57. h3 {[%clk 0:00:06]}  h5 {[%clk 0:00:09]} 58. g4 {[%clk 0:00:06]}  fxg4 {[%clk 0:00:08]} 59. hxg4 {[%clk 0:00:06]}  h4 {[%clk 0:00:09]} 60. g5 {[%clk 0:00:04]}  h3 {[%clk 0:00:09]} 61. Kf1 {[%clk 0:00:03]}  Rxe2 {[%clk 0:00:07]} 62. Kxe2 {[%clk 0:00:02]}  h2 {[%clk 0:00:08]} 63. f5 {[%clk 0:00:01]}  h1=Q {[%clk 0:00:08]} 64. g6+ {[%clk 0:00:02]}  Kh8 {[%clk 0:00:08]} 65. f6 {[%clk 0:00:03]}  Qf3+ {[%clk 0:00:08]} 66. Kd2 {[%clk 0:00:03]}  Qxf6 {[%clk 0:00:09]} 67. Nd5 {[%clk 0:00:02]}  Qd4+ {[%clk 0:00:09]} 0-1


[Site "https://www.chess.com"]

[Event "Early Titled Tuesday Blitz | February 8 2022"]
[White "Maksimenko, Viktor"]
[Black "Brodowski, Piotr"]
[WhiteFideId "13710478"]
[BlackFideId "1124480"]
[WhiteElo "2269"]
[BlackElo "2422"]
[Result "1-0"]
[Round "11"]
[TimeControl "180+1"]
[Date "2022.02.08"]
[WhiteClock "0:00:21"]
[BlackClock "0:00:04"]

1. e4 {[%clk 0:03:00]}  d5 {[%clk 0:02:03]} 2. exd5 {[%clk 0:02:59]}  Qxd5 {[%clk 0:02:03]} 3. d4 {[%clk 0:02:57]}  Nf6 {[%clk 0:02:00]} 4. c4 {[%clk 0:02:52]}  Qd8 {[%clk 0:01:57]} 5. Nc3 {[%clk 0:02:51]}  c6 {[%clk 0:01:55]} 6. Nf3 {[%clk 0:02:44]}  Bg4 {[%clk 0:01:52]} 7. Be2 {[%clk 0:02:43]}  Bxf3 {[%clk 0:01:51]} 8. Bxf3 {[%clk 0:02:42]}  e6 {[%clk 0:01:52]} 9. O-O {[%clk 0:02:40]}  Be7 {[%clk 0:01:48]} 10. Re1 {[%clk 0:02:31]}  O-O {[%clk 0:01:48]} 11. d5 {[%clk 0:02:28]}  exd5 {[%clk 0:01:15]} 12. cxd5 {[%clk 0:02:27]}  Qc7 {[%clk 0:01:09]} 13. Bg5 {[%clk 0:02:07]}  h6 {[%clk 0:01:05]} 14. Bh4 {[%clk 0:02:02]}  Rd8 {[%clk 0:00:48]} 15. Qb3 {[%clk 0:01:58]}  Na6 {[%clk 0:00:43]} 16. dxc6 {[%clk 0:01:44]}  bxc6 {[%clk 0:00:42]} 17. Qc4 {[%clk 0:01:44]}  Nc5 {[%clk 0:00:30]} 18. Bg3 {[%clk 0:01:26]}  Qb7 {[%clk 0:00:24]} 19. b3 {[%clk 0:00:58]}  Rac8 {[%clk 0:00:18]} 20. Rad1 {[%clk 0:00:49]}  Ne6 {[%clk 0:00:17]} 21. Rxd8+ {[%clk 0:00:46]}  Bxd8 {[%clk 0:00:17]} 22. h3 {[%clk 0:00:44]}  Be7 {[%clk 0:00:14]} 23. Na4 {[%clk 0:00:39]}  Qb5 {[%clk 0:00:12]} 24. Nb2 {[%clk 0:00:37]}  Bb4 {[%clk 0:00:09]} 25. Rc1 {[%clk 0:00:34]}  Qb6 {[%clk 0:00:09]} 26. Na4 {[%clk 0:00:33]}  Qd8 {[%clk 0:00:08]} 27. Qxb4 {[%clk 0:00:33]}  Nd4 {[%clk 0:00:08]} 28. Qc3 {[%clk 0:00:29]}  Nxf3+ {[%clk 0:00:08]} 29. Qxf3 {[%clk 0:00:30]}  Nd5 {[%clk 0:00:09]} 30. Rd1 {[%clk 0:00:28]}  Qg5 {[%clk 0:00:08]} 31. Nc3 {[%clk 0:00:27]}  Nb4 {[%clk 0:00:08]} 32. Ne4 {[%clk 0:00:27]}  Qg6 {[%clk 0:00:09]} 33. Nd6 {[%clk 0:00:25]}  Rd8 {[%clk 0:00:08]} 34. Kh2 {[%clk 0:00:25]}  Nd5 {[%clk 0:00:08]} 35. Nc4 {[%clk 0:00:22]}  Re8 {[%clk 0:00:08]} 36. Rd2 {[%clk 0:00:21]}  f6 {[%clk 0:00:07]} 37. Re2 {[%clk 0:00:20]}  Rd8 {[%clk 0:00:03]} 38. Na5 {[%clk 0:00:20]}  Nb4 {[%clk 0:00:01]} 39. Nxc6 {[%clk 0:00:20]}  Rd3 {[%clk 0:00:01]} 40. Ne7+ {[%clk 0:00:18]}  Kf7 {[%clk 0:00:01]} 41. Nxg6 {[%clk 0:00:19]}  Rxf3 {[%clk 0:00:02]} 42. Nh8+ {[%clk 0:00:19]}  Kg8 {[%clk 0:00:02]} 43. gxf3 {[%clk 0:00:19]}  Kxh8 {[%clk 0:00:03]} 44. Re7 {[%clk 0:00:19]}  Nc6 {[%clk 0:00:02]} 45. Rc7 {[%clk 0:00:20]}  Nd4 {[%clk 0:00:03]} 46. Rxa7 {[%clk 0:00:20]}  Nxf3+ {[%clk 0:00:03]} 47. Kh1 {[%clk 0:00:21]}  Ne1 {[%clk 0:00:03]} 48. a4 {[%clk 0:00:21]}  Kh7 {[%clk 0:00:04]} 49. a5 {[%clk 0:00:22]}  Kg6 {[%clk 0:00:03]} 50. a6 {[%clk 0:00:23]}  Kf5 {[%clk 0:00:04]} 51. Rxg7 {[%clk 0:00:22]}  Ke4 {[%clk 0:00:05]} 52. Re7+ {[%clk 0:00:22]}  Kf3 {[%clk 0:00:06]} 53. Rxe1 {[%clk 0:00:23]}  h5 {[%clk 0:00:04]} 54. Re3# {[%clk 0:00:21]} 1-0


[Site "https://www.chess.com"]

[Event "Early Titled Tuesday Blitz | February 8 2022"]
[White "Marcziter, Dmitrii"]
[Black "Gracia Alvarez, Gerardo Antonio"]
[WhiteFideId "13900765"]
[BlackFideId "5109124"]
[WhiteElo "2155"]
[BlackElo "2139"]
[Result "1-0"]
[Round "11"]
[TimeControl "180+1"]
[Date "2022.02.08"]
[WhiteClock "0:00:42"]
[BlackClock "0:00:01"]

1. d4 {[%clk 0:03:00]}  Nf6 {[%clk 0:02:59]} 2. c4 {[%clk 0:02:59]}  c5 {[%clk 0:02:59]} 3. d5 {[%clk 0:02:58]}  b5 {[%clk 0:02:57]} 4. cxb5 {[%clk 0:02:58]}  a6 {[%clk 0:02:58]} 5. b6 {[%clk 0:02:59]}  d6 {[%clk 0:02:57]} 6. Nc3 {[%clk 0:03:00]}  Nbd7 {[%clk 0:02:53]} 7. Nf3 {[%clk 0:03:00]}  Rb8 {[%clk 0:02:52]} 8. Nd2 {[%clk 0:03:01]}  Nxb6 {[%clk 0:02:52]} 9. e4 {[%clk 0:03:01]}  g6 {[%clk 0:02:52]} 10. Be2 {[%clk 0:03:00]}  Bg7 {[%clk 0:02:52]} 11. O-O {[%clk 0:03:00]}  O-O {[%clk 0:02:52]} 12. Qc2 {[%clk 0:03:01]}  Na8 {[%clk 0:02:49]} 13. Nc4 {[%clk 0:02:58]}  Nc7 {[%clk 0:02:45]} 14. a4 {[%clk 0:02:56]}  e6 {[%clk 0:02:27]} 15. dxe6 {[%clk 0:02:48]}  Bxe6 {[%clk 0:02:27]} 16. Bf4 {[%clk 0:02:43]}  Bxc4 {[%clk 0:02:25]} 17. Bxc4 {[%clk 0:02:42]}  Qe7 {[%clk 0:02:25]} 18. Rfe1 {[%clk 0:02:40]}  Ne6 {[%clk 0:02:21]} 19. Bxe6 {[%clk 0:02:34]}  Qxe6 {[%clk 0:02:20]} 20. Rad1 {[%clk 0:02:30]}  Rfd8 {[%clk 0:02:19]} 21. h3 {[%clk 0:02:26]}  h6 {[%clk 0:02:17]} 22. Nd5 {[%clk 0:02:19]}  Nxd5 {[%clk 0:02:14]} 23. exd5 {[%clk 0:02:19]}  Qf6 {[%clk 0:02:13]} 24. Bc1 {[%clk 0:02:18]}  Rb4 {[%clk 0:02:03]} 25. b3 {[%clk 0:02:13]}  Qc3 {[%clk 0:01:59]} 26. Qe2 {[%clk 0:02:01]}  Qxb3 {[%clk 0:01:38]} 27. a5 {[%clk 0:01:59]}  Rd4 {[%clk 0:01:27]} 28. Rxd4 {[%clk 0:01:51]}  Bxd4 {[%clk 0:01:28]} 29. Qxa6 {[%clk 0:01:48]}  Qxd5 {[%clk 0:01:23]} 30. Bxh6 {[%clk 0:01:45]}  Ra8 {[%clk 0:01:17]} 31. Qb5 {[%clk 0:01:44]}  Qa2 {[%clk 0:01:11]} 32. Re2 {[%clk 0:01:30]}  Qa1+ {[%clk 0:01:04]} 33. Kh2 {[%clk 0:01:29]}  Qxa5 {[%clk 0:00:54]} 34. Re8+ {[%clk 0:01:26]}  Kh7 {[%clk 0:00:54]} 35. Qxa5 {[%clk 0:01:19]}  Rxa5 {[%clk 0:00:55]} 36. Bf4 {[%clk 0:01:19]}  Ra6 {[%clk 0:00:44]} 37. Rd8 {[%clk 0:01:19]}  Bxf2 {[%clk 0:00:40]} 38. Bxd6 {[%clk 0:01:17]}  Bd4 {[%clk 0:00:38]} 39. Bf4 {[%clk 0:01:14]}  Rc6 {[%clk 0:00:35]} 40. g4 {[%clk 0:01:10]}  Bg7 {[%clk 0:00:29]} 41. Rd7 {[%clk 0:01:09]}  c4 {[%clk 0:00:16]} 42. Rxf7 {[%clk 0:01:07]}  Rf6 {[%clk 0:00:14]} 43. Rxf6 {[%clk 0:00:57]}  Bxf6 {[%clk 0:00:15]} 44. Bc1 {[%clk 0:00:56]}  g5 {[%clk 0:00:13]} 45. Kg3 {[%clk 0:00:55]}  Kg6 {[%clk 0:00:12]} 46. Kf3 {[%clk 0:00:56]}  Kf7 {[%clk 0:00:12]} 47. Ke4 {[%clk 0:00:56]}  Ke6 {[%clk 0:00:12]} 48. Be3 {[%clk 0:00:51]}  Kd6 {[%clk 0:00:11]} 49. Kf5 {[%clk 0:00:51]}  Bd8 {[%clk 0:00:10]} 50. Bd4 {[%clk 0:00:46]}  Kd5 {[%clk 0:00:09]} 51. Bc3 {[%clk 0:00:46]}  Kc5 {[%clk 0:00:09]} 52. Ke5 {[%clk 0:00:44]}  Kb5 {[%clk 0:00:07]} 53. Kd5 {[%clk 0:00:44]}  Be7 {[%clk 0:00:06]} 54. Bd2 {[%clk 0:00:43]}  Bd8 {[%clk 0:00:04]} 55. Bc1 {[%clk 0:00:42]}  Bf6 {[%clk 0:00:04]} 56. Ke6 {[%clk 0:00:41]}  Bd8 {[%clk 0:00:03]} 57. Kd7 {[%clk 0:00:41]}  Bf6 {[%clk 0:00:03]} 58. Ke6 {[%clk 0:00:41]}  Bd8 {[%clk 0:00:02]} 59. Be3 {[%clk 0:00:42]}  c3 {[%clk 0:00:02]} 60. Kd7 {[%clk 0:00:40]}  Bf6 {[%clk 0:00:02]} 61. Ke6 {[%clk 0:00:41]}  Bd8 {[%clk 0:00:01]} 62. Kf5 {[%clk 0:00:42]} 1-0


[Site "https://www.chess.com"]

[Event "Early Titled Tuesday Blitz | February 8 2022"]
[White "Martirosyan, Haik M."]
[Black "Orozbaev, Eldiar"]
[WhiteFideId "13306553"]
[BlackFideId "13802240"]
[WhiteElo "2735"]
[BlackElo "2050"]
[Result "1-0"]
[Round "11"]
[TimeControl "180+1"]
[Date "2022.02.08"]
[WhiteClock "0:00:09"]
[BlackClock "0:00:03"]

1. c4 {[%clk 0:03:00]}  b6 {[%clk 0:02:58]} 2. Nc3 {[%clk 0:02:58]}  Bb7 {[%clk 0:02:58]} 3. d4 {[%clk 0:02:58]}  Nf6 {[%clk 0:02:58]} 4. Nf3 {[%clk 0:02:56]}  e6 {[%clk 0:02:58]} 5. g3 {[%clk 0:02:56]}  Bb4 {[%clk 0:02:58]} 6. Bg2 {[%clk 0:02:55]}  Ne4 {[%clk 0:02:57]} 7. Qc2 {[%clk 0:02:53]}  f5 {[%clk 0:02:56]} 8. O-O {[%clk 0:02:53]}  Bxc3 {[%clk 0:02:55]} 9. bxc3 {[%clk 0:02:52]}  O-O {[%clk 0:02:55]} 10. a4 {[%clk 0:02:51]}  d6 {[%clk 0:02:51]} 11. a5 {[%clk 0:02:50]}  bxa5 {[%clk 0:02:47]} 12. c5 {[%clk 0:02:47]}  Nd7 {[%clk 0:02:44]} 13. Qb3 {[%clk 0:02:20]}  Bd5 {[%clk 0:02:35]} 14. c4 {[%clk 0:02:20]}  Bc6 {[%clk 0:02:28]} 15. Rxa5 {[%clk 0:02:07]}  Rb8 {[%clk 0:02:23]} 16. Qd3 {[%clk 0:02:00]}  Ndf6 {[%clk 0:02:09]} 17. cxd6 {[%clk 0:01:55]}  cxd6 {[%clk 0:02:07]} 18. Rxa7 {[%clk 0:01:55]}  Ra8 {[%clk 0:02:02]} 19. Rxa8 {[%clk 0:01:51]}  Qxa8 {[%clk 0:02:03]} 20. Bf4 {[%clk 0:01:39]}  Rb8 {[%clk 0:01:58]} 21. h3 {[%clk 0:01:36]}  g5 {[%clk 0:01:49]} 22. Nxg5 {[%clk 0:01:18]}  Nxg5 {[%clk 0:01:48]} 23. d5 {[%clk 0:01:18]}  Nge4 {[%clk 0:01:21]} 24. dxc6 {[%clk 0:01:15]}  Qxc6 {[%clk 0:01:19]} 25. g4 {[%clk 0:01:14]}  Rc8 {[%clk 0:01:15]} 26. Rc1 {[%clk 0:01:09]}  Qc5 {[%clk 0:01:06]} 27. Be3 {[%clk 0:01:09]}  Qe5 {[%clk 0:01:00]} 28. f4 {[%clk 0:00:51]}  Qb2 {[%clk 0:00:57]} 29. g5 {[%clk 0:00:49]}  Ra8 {[%clk 0:00:24]} 30. gxf6 {[%clk 0:00:39]}  Ra3 {[%clk 0:00:24]} 31. Qd4 {[%clk 0:00:28]}  Qxe2 {[%clk 0:00:24]} 32. Bxe4 {[%clk 0:00:23]}  Rxe3 {[%clk 0:00:22]} 33. Bg2 {[%clk 0:00:21]}  Rd3 {[%clk 0:00:15]} 34. Qa7 {[%clk 0:00:18]}  Rg3 {[%clk 0:00:05]} 35. Qf2 {[%clk 0:00:17]}  Qxf2+ {[%clk 0:00:03]} 36. Kxf2 {[%clk 0:00:17]}  Ra3 {[%clk 0:00:04]} 37. Rd1 {[%clk 0:00:16]}  Ra6 {[%clk 0:00:03]} 38. c5 {[%clk 0:00:13]}  dxc5 {[%clk 0:00:03]} 39. Rd7 {[%clk 0:00:14]}  Ra3 {[%clk 0:00:02]} 40. Bf3 {[%clk 0:00:14]}  Kf8 {[%clk 0:00:03]} 41. Bh5 {[%clk 0:00:13]}  Ra8 {[%clk 0:00:02]} 42. Rxh7 {[%clk 0:00:13]}  Kg8 {[%clk 0:00:02]} 43. Bg6 {[%clk 0:00:12]}  Ra2+ {[%clk 0:00:01]} 44. Kg3 {[%clk 0:00:11]}  Ra3+ {[%clk 0:00:02]} 45. Kh4 {[%clk 0:00:12]}  Ra8 {[%clk 0:00:02]} 46. f7+ {[%clk 0:00:11]}  Kf8 {[%clk 0:00:02]} 47. Rh8+ {[%clk 0:00:10]}  Kg7 {[%clk 0:00:03]} 48. Rxa8 {[%clk 0:00:09]} 1-0


[Site "https://www.chess.com"]

[Event "Early Titled Tuesday Blitz | February 8 2022"]
[White "Maurizzi, Marc`Andria"]
[Black "Srihari L R"]
[WhiteFideId "36083534"]
[BlackFideId "46617116"]
[WhiteElo "2186"]
[BlackElo "2121"]
[Result "0-1"]
[Round "11"]
[TimeControl "180+1"]
[Date "2022.02.08"]
[WhiteClock "0:01:43"]
[BlackClock "0:00:42"]

1. d4 {[%clk 0:03:00]}  d5 {[%clk 0:02:58]} 2. c4 {[%clk 0:03:01]}  e6 {[%clk 0:02:57]} 3. Nc3 {[%clk 0:03:02]}  c5 {[%clk 0:02:58]} 4. Nf3 {[%clk 0:03:01]}  Nf6 {[%clk 0:02:56]} 5. cxd5 {[%clk 0:03:01]}  Nxd5 {[%clk 0:02:56]} 6. e3 {[%clk 0:03:00]}  Nc6 {[%clk 0:02:56]} 7. Bd3 {[%clk 0:02:59]}  Be7 {[%clk 0:02:55]} 8. O-O {[%clk 0:02:59]}  O-O {[%clk 0:02:55]} 9. Qe2 {[%clk 0:02:57]}  b6 {[%clk 0:02:39]} 10. Rd1 {[%clk 0:02:53]}  cxd4 {[%clk 0:02:34]} 11. exd4 {[%clk 0:02:53]}  Bb7 {[%clk 0:02:34]} 12. Nxd5 {[%clk 0:02:50]}  exd5 {[%clk 0:02:30]} 13. Bf4 {[%clk 0:02:48]}  Bf6 {[%clk 0:02:29]} 14. Be5 {[%clk 0:02:43]}  Re8 {[%clk 0:02:25]} 15. Qc2 {[%clk 0:02:41]}  g6 {[%clk 0:02:18]} 16. Bxf6 {[%clk 0:02:40]}  Qxf6 {[%clk 0:02:17]} 17. Qa4 {[%clk 0:02:35]}  a6 {[%clk 0:01:59]} 18. Rac1 {[%clk 0:02:31]}  b5 {[%clk 0:01:49]} 19. Qb3 {[%clk 0:02:29]}  Na5 {[%clk 0:01:48]} 20. Qb4 {[%clk 0:02:27]}  Nc4 {[%clk 0:01:48]} 21. Bf1 {[%clk 0:02:23]}  Rac8 {[%clk 0:01:19]} 22. b3 {[%clk 0:02:20]}  Nd6 {[%clk 0:01:15]} 23. Ne5 {[%clk 0:02:17]}  Ne4 {[%clk 0:01:11]} 24. f3 {[%clk 0:02:09]}  Qf4 {[%clk 0:01:07]} 25. Qe1 {[%clk 0:02:09]}  Rxc1 {[%clk 0:00:55]} 26. Rxc1 {[%clk 0:02:10]}  Nd2 {[%clk 0:00:54]} 27. Qf2 {[%clk 0:01:49]}  Nxf3+ {[%clk 0:00:48]} 28. Qxf3 {[%clk 0:01:48]}  Qxd4+ {[%clk 0:00:48]} 29. Kh1 {[%clk 0:01:46]}  Qxe5 {[%clk 0:00:48]} 30. Bd3 {[%clk 0:01:46]}  Re7 {[%clk 0:00:46]} 31. h3 {[%clk 0:01:45]}  d4 {[%clk 0:00:45]} 32. Qf2 {[%clk 0:01:46]}  Qe3 {[%clk 0:00:43]} 33. Qh4 {[%clk 0:01:43]}  Qxc1+ {[%clk 0:00:42]} 0-1


[Site "https://www.chess.com"]

[Event "Early Titled Tuesday Blitz | February 8 2022"]
[White "Mayaud, Raphael"]
[Black "Komissarov, Alexey"]
[WhiteFideId "627151"]
[BlackFideId "4176545"]
[WhiteElo "2191"]
[BlackElo "2216"]
[Result "1-0"]
[Round "11"]
[TimeControl "180+1"]
[Date "2022.02.08"]
[WhiteClock "0:00:12"]
[BlackClock "0:00:01"]

1. d4 {[%clk 0:02:55]}  d5 {[%clk 0:02:58]} 2. c4 {[%clk 0:02:55]}  e6 {[%clk 0:02:57]} 3. Nf3 {[%clk 0:02:55]}  Nf6 {[%clk 0:02:53]} 4. g3 {[%clk 0:02:55]}  dxc4 {[%clk 0:02:48]} 5. Bg2 {[%clk 0:02:55]}  a6 {[%clk 0:02:46]} 6. Ne5 {[%clk 0:02:47]}  Bb4+ {[%clk 0:02:43]} 7. Nc3 {[%clk 0:02:40]}  O-O {[%clk 0:02:41]} 8. O-O {[%clk 0:02:25]}  Nd5 {[%clk 0:02:38]} 9. Qc2 {[%clk 0:02:05]}  Nb6 {[%clk 0:02:31]} 10. Rd1 {[%clk 0:02:03]}  N8d7 {[%clk 0:02:15]} 11. Bf4 {[%clk 0:01:36]}  Bd6 {[%clk 0:01:56]} 12. Ne4 {[%clk 0:01:22]}  Nd5 {[%clk 0:01:36]} 13. Nxd6 {[%clk 0:01:03]}  cxd6 {[%clk 0:01:33]} 14. Nxc4 {[%clk 0:01:03]}  Nxf4 {[%clk 0:01:31]} 15. gxf4 {[%clk 0:01:04]}  Nf6 {[%clk 0:01:19]} 16. Rac1 {[%clk 0:00:59]}  d5 {[%clk 0:01:03]} 17. Ne5 {[%clk 0:00:58]}  Bd7 {[%clk 0:01:02]} 18. Qc7 {[%clk 0:00:51]}  Bb5 {[%clk 0:00:54]} 19. Qxd8 {[%clk 0:00:49]}  Rfxd8 {[%clk 0:00:52]} 20. e3 {[%clk 0:00:50]}  Rdc8 {[%clk 0:00:50]} 21. b3 {[%clk 0:00:38]}  Be2 {[%clk 0:00:45]} 22. Re1 {[%clk 0:00:37]}  Bh5 {[%clk 0:00:39]} 23. Nd3 {[%clk 0:00:30]}  Bg6 {[%clk 0:00:33]} 24. Ne5 {[%clk 0:00:23]}  Be4 {[%clk 0:00:31]} 25. f3 {[%clk 0:00:22]}  Bg6 {[%clk 0:00:31]} 26. Kf2 {[%clk 0:00:22]}  Kf8 {[%clk 0:00:29]} 27. Ke2 {[%clk 0:00:22]}  Ke7 {[%clk 0:00:27]} 28. Kd2 {[%clk 0:00:22]}  Ne8 {[%clk 0:00:26]} 29. Bf1 {[%clk 0:00:20]}  f6 {[%clk 0:00:24]} 30. Nd3 {[%clk 0:00:18]}  Bxd3 {[%clk 0:00:23]} 31. Bxd3 {[%clk 0:00:18]}  h6 {[%clk 0:00:22]} 32. Rxc8 {[%clk 0:00:18]}  Rxc8 {[%clk 0:00:18]} 33. Rc1 {[%clk 0:00:18]}  Rxc1 {[%clk 0:00:16]} 34. Kxc1 {[%clk 0:00:19]}  Kd6 {[%clk 0:00:16]} 35. Kd2 {[%clk 0:00:19]}  Nc7 {[%clk 0:00:14]} 36. e4 {[%clk 0:00:17]}  Ke7 {[%clk 0:00:13]} 37. Ke3 {[%clk 0:00:15]}  Ne8 {[%clk 0:00:10]} 38. Be2 {[%clk 0:00:15]}  Nd6 {[%clk 0:00:08]} 39. Bd3 {[%clk 0:00:15]}  f5 {[%clk 0:00:05]} 40. Bc2 {[%clk 0:00:13]}  g6 {[%clk 0:00:01]} 41. Bd3 {[%clk 0:00:12]} 1-0


[Site "https://www.chess.com"]

[Event "Early Titled Tuesday Blitz | February 8 2022"]
[White "Mekhitarian, Krikor Sevag"]
[Black "Alavkin, Arseny"]
[WhiteFideId "2107660"]
[BlackFideId "4120612"]
[WhiteElo "2598"]
[BlackElo "2391"]
[Result "1-0"]
[Round "11"]
[TimeControl "180+1"]
[Date "2022.02.08"]
[WhiteClock "0:00:14"]
[BlackClock "0:01:13"]

1. e4 {[%clk 0:03:00]}  e6 {[%clk 0:03:00]} 2. d4 {[%clk 0:02:59]}  d5 {[%clk 0:03:00]} 3. Nc3 {[%clk 0:02:59]}  Bb4 {[%clk 0:03:00]} 4. e5 {[%clk 0:02:58]}  c5 {[%clk 0:03:00]} 5. a3 {[%clk 0:02:58]}  Bxc3+ {[%clk 0:03:00]} 6. bxc3 {[%clk 0:02:59]}  Qc7 {[%clk 0:03:00]} 7. Nf3 {[%clk 0:02:59]}  Ne7 {[%clk 0:03:00]} 8. h4 {[%clk 0:02:58]}  b6 {[%clk 0:03:01]} 9. Bb5+ {[%clk 0:02:58]}  Bd7 {[%clk 0:03:01]} 10. Bd3 {[%clk 0:02:59]}  Bc8 {[%clk 0:03:01]} 11. a4 {[%clk 0:02:57]}  Ba6 {[%clk 0:03:01]} 12. Bb5+ {[%clk 0:02:57]}  Bxb5 {[%clk 0:03:02]} 13. axb5 {[%clk 0:02:58]}  Nd7 {[%clk 0:03:03]} 14. h5 {[%clk 0:02:57]}  h6 {[%clk 0:03:03]} 15. Rh4 {[%clk 0:02:57]}  Nf5 {[%clk 0:03:03]} 16. Rf4 {[%clk 0:02:53]}  cxd4 {[%clk 0:02:59]} 17. cxd4 {[%clk 0:02:51]}  Rc8 {[%clk 0:03:00]} 18. g4 {[%clk 0:02:29]}  Ne7 {[%clk 0:02:57]} 19. Ba3 {[%clk 0:02:29]}  Qxc2 {[%clk 0:02:52]} 20. Bxe7 {[%clk 0:01:58]}  Kxe7 {[%clk 0:02:51]} 21. Qxc2 {[%clk 0:01:53]}  Rxc2 {[%clk 0:02:52]} 22. Rxa7 {[%clk 0:01:53]}  Rd8 {[%clk 0:02:51]} 23. g5 {[%clk 0:01:48]}  Rb2 {[%clk 0:02:30]} 24. g6 {[%clk 0:01:33]}  f6 {[%clk 0:02:30]} 25. exf6+ {[%clk 0:01:22]}  gxf6 {[%clk 0:02:31]} 26. Ne5 {[%clk 0:01:19]}  fxe5 {[%clk 0:02:12]} 27. dxe5 {[%clk 0:01:11]}  Rb1+ {[%clk 0:02:11]} 28. Ke2 {[%clk 0:01:06]}  Rg1 {[%clk 0:02:12]} 29. Rf7+ {[%clk 0:01:01]}  Ke8 {[%clk 0:02:12]} 30. f4 {[%clk 0:01:00]}  d4 {[%clk 0:02:12]} 31. Kf2 {[%clk 0:00:56]}  Rg4 {[%clk 0:02:07]} 32. Kf3 {[%clk 0:00:54]}  Rg1 {[%clk 0:02:07]} 33. Rh7 {[%clk 0:00:40]}  d3 {[%clk 0:01:57]} 34. Ke3 {[%clk 0:00:21]}  Rg3+ {[%clk 0:01:51]} 35. Kd2 {[%clk 0:00:18]}  Rg4 {[%clk 0:01:51]} 36. g7 {[%clk 0:00:15]}  Kf7 {[%clk 0:01:45]} 37. Rh8 {[%clk 0:00:14]}  Rg2+ {[%clk 0:01:24]} 38. Kxd3 {[%clk 0:00:14]}  Rb2 {[%clk 0:01:13]} 1-0


[Site "https://www.chess.com"]